Cogmind - Beta 16 @@@ ROGUE MODE // 2025.10.22 @ 17:08:03 Player: WetterLettuce Result: Destroyed by Piercing Trap Performance ------------- Evolutions (0) 0 Regions Visited (3) 600 Robots Destroyed (20) 100 Value Destroyed (656) 656 Prototype IDs (12) 240 Alien Tech Used (0) 0 Bonus (168) 168 TOTAL SCORE: 1764 Bonus ------- Follower Combat Kills 168 Cogmind --------- Core Integrity 0/250 Matter 295/300 Energy 196/200 System Corruption 0% Temperature Cool (2) Movement Treading (160) Location -10/Subcaves Parts ------- > --- POWER (1) -------- Subdweller Power Source > --- PROPULSION (2) --- Light Treads Light Treads > --- UTILITY (2) ------ Disposable Heat Sink Medium Storage Unit > --- WEAPON (2) ------- Mining Laser > --- INVENTORY (10) --- Subdweller Power Source Experimental Sensor Array Makeshift System Shield Assault Rifle Heavy Assault Rifle Battle Rifle Battle Cannon Grenade Launcher Grenade Launcher Rocket Launcher Peak State ------------ > --- POWER ------------ Subdweller Power Source > --- PROPULSION ------- Light Treads Light Treads > --- UTILITY ---------- Disposable Heat Sink Medium Storage Unit > --- WEAPON ----------- Battle Rifle Battle Cannon > --- INVENTORY -------- Experimental Sensor Array Assault Rifle Heavy Assault Rifle Battle Rifle Light Cannon Grenade Launcher Grenade Launcher Rocket Launcher Mining Laser [Rating: 13] Favorites ----------- Power Improved Ion Engine Engine Improved Ion Engine Propulsion Light Treads Treads Light Treads Utility Medium Storage Unit Device Terrain Scanner Storage Medium Storage Unit Weapon Battle Rifle Energy Gun Medium Laser Ballistic Gun Battle Rifle Ballistic Cannon Battle Cannon Launcher Rocket Launcher Special Weapon Mining Laser Build | -11 -10 -10 -10 ------- Run | Yrd Mat Min Sub Slots Evolved . | . . . . Power . | . . . . Propulsion . | . . . . Utility . | . . . . Weapon . | . . . . Parts Attached 26 | 6 2 6 12 Power 6 | 1 . 2 3 Engine 6 | 1 . 2 3 Core . | . . . . Reactor . | . . . . Propulsion 7 | 2 . 3 2 Treads 7 | 2 . 3 2 Leg . | . . . . Wheel . | . . . . Hover . | . . . . Flight . | . . . . Utility 5 | 1 2 . 2 Device 2 | . 1 . 1 Storage 3 | 1 1 . 1 Processor . | . . . . Hackware . | . . . . Protection . | . . . . Artifact . | . . . . Weapon 8 | 2 . 1 5 Energy Gun 1 | 1 . . . Energy Cannon . | . . . . Ballistic Gun 3 | 1 . 1 1 Ballistic Cannon 2 | . . . 2 Launcher 1 | . . . 1 Special Weapon 1 | . . . 1 Impact Weapon . | . . . . Slashing Weapon . | . . . . Piercing Weapon . | . . . . Special Melee Weapon . | . . . . Unidentified Prototypes . | . . . . Parts Lost 5 | . . 1 4 Power 2 | . . 1 1 Propulsion 1 | . . . 1 Utility . | . . . . Weapon 2 | . . . 2 Highest Loss Streak 1 | . . 1 1 To Critical Strikes 1 | . . . 1 Average Backups 8 | . 5 9 9 Power . | . 1 . . Propulsion . | . 1 2 . Utility 1 | . . . 1 Weapon 6 | . 3 6 7 Tool/Special . | . . . . Unused Backups 8 | . . 1 7 Power . | . . . . Propulsion 1 | . . 1 . Utility 2 | . . . 2 Weapon 5 | . . . 5 Tool/Special . | . . . . Average Slot Usage (%) 92 | . 98 99 89 Engine 13 | . 14 13 13 Treads 27 | . 28 28 27 Device 6 | . 12 14 4 Storage 13 | . 14 14 13 Energy Gun 5 | . 14 14 3 Ballistic Gun 13 | . 14 14 13 Ballistic Cannon 6 | . . . 8 Special Weapon 1 | . . . 2 Peak Build Rating 13 | 6 8 10 13 Average Rating 9 | 4 6 9 10 On Entrance 6 | . 6 8 10 Avg Prop Armor Cover (%) . | . . . . Naked Turns . | . . . . Heaviest Build 23 | 14 20 23 23 Greatest Support 40 | 40 40 40 40 Greatest Overweight (x) . | . . . . Average Overweight (x) . | . . . . Largest Inventory Capacity 35 | 8 10 10 35 Average Capacity 9 | 6 9 10 10 Most Carried 10 | 2 10 10 10 Average Carried 8 | . 5 9 9 Final Capacity 10 | 8 10 10 10 Final Carried 10 | 2 10 10 10 Class Distribution -------------------- 72% | Mutant 27% | Scavenger-Mutant Dominant Class ---------------- Mutant | -10/Materials Scavenger-Mutant | -10/Mines Mutant | -10/Subcaves Resources | -11 -10 -10 -10 ----------- Run | Yrd Mat Min Sub Matter Collected 913 | 203 110 106 494 Remotely . | . . . . Salvage Created 915 | . 172 134 609 Parts 71 | . 9 13 49 Haulers Intercepted 1 | . 1 . . Recyclers Shooed . | . . . . Parts Field Recycled . | . . . . Retrieved Matter . | . . . . Parts Self-Destructed 20 | . . . 20 Prevented . | . . . . Parts Restored . | . . . . Kills | -11 -10 -10 -10 ------- Run | Yrd Mat Min Sub Combat Hostiles Destroyed 16 | . 1 4 11 Guns 12 | . 1 4 7 Cannons 4 | . . . 4 Classes Destroyed 6 | . 3 2 1 Hauler 1 | . 1 . . Watcher 3 | . 3 . . Swarmer 2 | . . 2 . Grunt 2 | . 1 . 1 Sentry 3 | . . 2 1 Subdweller 9 | . . . 9 Best Kill Streak 3 | . 2 2 3 Combat Bots Only 3 | . 1 2 3 Max Kills in Single Turn 1 | . 1 1 1 Gunslinging . | . . . . Exploded . | . . . . Melee . | . . . . Uniques/NPCs Destroyed . | . . . . Combat | -11 -10 -10 -10 -------- Run | Yrd Mat Min Sub Hostile Shots Fired 103 | . 13 26 64 Missed 34 | . 2 7 25 Hits 69 | . 11 19 39 Projectile 69 | . 11 19 39 AOE 2 | . . . 2 Critical Strikes 2 | . . 1 1 Damage Taken 1409 | . 140 240 1029 Core 261 | . . 53 208 Absorbed by Shields . | . . . . Core Remaining (%) 100 | 100 . . . Volleys Fired 105 | . 11 7 87 Largest 2 | . 2 2 2 Hottest 100 | . 70 73 100 Shots Fired 178 | . 22 14 142 Gun 119 | . 22 14 83 Cannon 39 | . . . 39 Launcher 1 | . . . 1 Special 19 | . . . 19 Kinetic 108 | . 11 7 90 Thermal 69 | . 11 7 51 Explosive 1 | . . . 1 Electromagnetic . | . . . . Robot Hit Streak 16 | . 5 11 16 Robot Miss Streak 3 | . 2 1 3 Penetration Max . | . . . . Secondary Targets 1 | . . 1 . Max Gunslinging Chain 1 | . . 1 . Shots Hit Robots 99 | . 13 11 75 Core Hits 42 | . 8 6 28 Critical Kills . | . . . . Critical Parts Destroyed . | . . . . Critical Strikes 5 | . 2 1 2 Burn 3 | . 2 1 . Destroy 1 | . . . 1 Blast 1 | . . . 1 Melee Attacks . | . . . . Impact . | . . . . Slashing . | . . . . Piercing . | . . . . Sneak Attacks . | . . . . Combat Hostiles . | . . . . Follow-up Attacks . | . . . . Damage Inflicted 1337 | . 162 139 1036 Guns 977 | . 162 139 676 Cannons 297 | . . . 297 Explosions 63 | . . . 63 Melee . | . . . . Ramming . | . . . . Kinetic 889 | . 62 64 763 Thermal 385 | . 100 75 210 Explosive 63 | . . . 63 Electromagnetic . | . . . . Impact . | . . . . Slashing . | . . . . Piercing . | . . . . Highest Corruption . | . . . . Average Corruption . | . . . . Corruption Purged . | . . . . Corruption Blocked . | . . . . Overload Shots . | . . . . Overflow Damage . | . . . . Projectiles . | . . . . Explosions . | . . . . Melee . | . . . . Knockbacks 2 | . . . 2 Impact . | . . . . Kinetic 2 | . . . 2 Secondary . | . . . . Self-Inflicted Damage 32 | . . . 32 Shots 1 | . . . 1 Rammed . | . . . . Targets Rammed . | . . . . Kicked . | . . . . Crushed . | . . . . Highest Temperature 58 | . 36 58 . Average Temperature 22 | . 13 34 . Received Heat Transfer 300 | . 75 90 135 Siege Activations . | . . . . Martial Activations . | . . . . Shielding Activations . | . . . . Robots Disrupted . | . . . . Combat Hostiles . | . . . . Robots Corrupted . | . . . . Combat Hostiles . | . . . . Parts Fried . | . . . . Impact Corruptions . | . . . . Robots Melted . | . . . . Combat Hostiles . | . . . . Parts Melted . | . . . . Heat Transferred 1369 | . 444 296 629 Parts Sabotaged . | . . . . Parts Stolen . | . . . . Parts Stripped . | . . . . Power Chain Reactions . | . . . . Alert | -11 -10 -10 -10 ------- Run | Yrd Mat Min Sub Maximum Alert Level . | . . . . Low Security (%) 100 | 100 100 100 . Level 1 . | . . . . Level 2 . | . . . . Level 3 . | . . . . Level 4 . | . . . . Level 5 . | . . . . High Security . | . . . . Max Security . | . . . . Peak Influence 112 | . 20 112 . Initial . | . . . . Average 13 | . 1 24 . Influence Increases 382 | . 55 232 95 Destroy 0b10 Robot/C 260 | . 20 160 80 Destroy 0b10 Robot/NC 20 | . 20 . . Destroy Leader 38 | . 8 20 10 Allied During Kill 27 | . . 22 5 Successful Hack 6 | . 6 . . Disable Machine 15 | . . 15 . Destroy Structure 1 | . 1 . . Lose Combat Pursuer 15 | . . 15 . Influence Decreases 382 | . 55 136 191 Entered New Map 51 | . . . 51 Time Decay 291 | . 55 136 100 Lost Ally 40 | . . . 40 Squads Dispatched 1 | . 1 . . Investigation 1 | . 1 . . Extermination . | . . . . Reinforcement . | . . . . Assault . | . . . . Garrison . | . . . . Intercept . | . . . . Searches Triggered . | . . . . Construction Impeded . | . . . . Haulers Reinforced . | . . . . Active Scanning Responses . | . . . . Cargo Convoy Interrupts . | . . . . Stealth | -11 -10 -10 -10 --------- Run | Yrd Mat Min Sub Distress Signals . | . . . . Communications Jammed . | . . . . Distress Signals . | . . . . Times Spotted 30 | . 8 8 14 Peak Tracking Total 3 | . 3 3 2 Tactical Retreats 1 | . . 1 . Traps | -11 -10 -10 -10 ------- Run | Yrd Mat Min Sub Traps Triggered 5 | . 2 . 3 Indirectly . | . . . . Trap Hack Attempts . | . . . . Triggered . | . . . . Disarmed . | . . . . Reprogrammed . | . . . . Reused . | . . . . Traps Extracted . | . . . . Installed . | . . . . Triggered . | . . . . Machines | -11 -10 -10 -10 ---------- Run | Yrd Mat Min Sub Machines Disabled 1 | . . 1 . Max in Single Turn 1 | . . 1 . Machines Repaired . | . . . . Machines Dismantled . | . . . . Machines Sabotaged . | . . . . Overloaded Fab Kills . | . . . . Hacking | -11 -10 -10 -10 --------- Run | Yrd Mat Min Sub Machines Accessed 11 | . 7 . 4 Terminals 6 | . 6 . . Fabricators . | . . . . Repair Stations . | . . . . Recycling Units 1 | . 1 . . Scanalyzers . | . . . . Garrison Access . | . . . . Total Hacks 33 | . 24 . 9 Successful 20 | . 11 . 9 Failed 13 | . 13 . . Catastrophic . | . . . . Database Lockouts . | . . . . Manual 19 | . 19 . . Terminals 19 | . 19 . . Fabricators . | . . . . Repair Stations . | . . . . Recycling Units 5 | . 5 . . Scanalyzers . | . . . . Garrison Access . | . . . . Terminal Hacks 11 | . 2 . 9 Record 6 | . . . 6 Open Door 1 | . . . 1 Branch Access Points 1 | . 1 . . Terminal Index 1 | . 1 . . Proto ID Catalog 1 | . . . 1 Release Object 1 | . . . 1 Fabricator Hacks . | . . . . Repair Station Hacks . | . . . . Recycling Unit Hacks 2 | . 2 . . Report Inventory 1 | . 1 . . Retrieve Matter 1 | . 1 . . Scanalyzer . | . . . . Garrison Access Hacks . | . . . . Unauthorized Hacks 7 | . 7 . . Terminals 6 | . 6 . . Assimilate 1 | . 1 . . Botnet 4 | . 4 . . Operators 1 | . 1 . . Fabricators . | . . . . Repair Stations . | . . . . Recycling Units 1 | . 1 . . Recyclers 1 | . 1 . . Scanalyzers . | . . . . Garrison Access . | . . . . Data Cores Recovered . | . . . . Used . | . . . . Hacking Detections 6 | . 6 . . Full Trace Events . | . . . . Feedback Events . | . . . . Feedback Blocked . | . . . . Robot Schematics Acquired . | . . . . Robots Built . | . . . . Authchips . | . . . . Time . | . . . . Total Robot Build Rating . | . . . . Part Schematics Acquired . | . . . . Parts Built . | . . . . Authchips . | . . . . Time . | . . . . Total Part Build Rating . | . . . . Part Studies Acquired . | . . . . Parts Repaired . | . . . . Time . | . . . . Parts Recycled . | . . . . Recycled Matter . | . . . . Retrieved Matter . | . . . . Retrieved Components . | . . . . Parts Scanalyzed . | . . . . Part Schematics Acquired . | . . . . Parts Damaged . | . . . . Bothacking | -11 -10 -10 -10 ------------ Run | Yrd Mat Min Sub Used RIF Installer . | . . . . Robots Hacked . | . . . . Non-combat . | . . . . Combat . | . . . . Robot Hacks Applied . | . . . . Relay Couplers Released . | . . . . Fabnet Peak Effective % . | . . . . Robots Rewired . | . . . . Allies Hacked . | . . . . Hacks Repelled . | . . . . Allies | -11 -10 -10 -10 -------- Run | Yrd Mat Min Sub Total Allies 4 | . 1 3 . Largest Group 3 | . 1 3 3 Highest-Rated Group 40 | . 10 40 40 Highest-Rated Ally 16 | . 10 16 16 Total Orders . | . . . . Ally Attacks 48 | . . 13 35 Total Damage 373 | . . 82 291 Kills 9 | . . 4 5 Allies Corrupted . | . . . . Allies Melted . | . . . . Intel | -11 -10 -10 -10 ------- Run | Yrd Mat Min Sub Active Infowar (turns) 1753 | . 464 673 616 Terrain 1753 | . 464 673 616 Robot Analysis Total . | . . . . Derelict Logs Recovered 2 | . . . 2 Drone Launches . | . . . . Drone Recoveries . | . . . . Exploration | -11 -10 -10 -10 ------------- Run | Yrd Mat Min Sub Turns Passed 4781 | 79 528 673 3501 Spaces Moved 2711 | 47 301 377 1986 Core 6 | 6 . . . Treads 2705 | 41 301 377 1986 Legs . | . . . . Wheels . | . . . . Hover . | . . . . Flight . | . . . . Fastest Speed 50 | 50 160 160 160 Average Speed 159 | 145 160 160 160 Slowest Speed 160 | 160 160 160 160 Overloaded Moves . | . . . . Propulsion Burnouts . | . . . . Robots Hopped . | . . . . Potential Cave-ins . | . . . . Cave-ins Triggered . | . . . . Exploration Rate (%) 63 | 3 68 86 96 Regions Visited 3 Branch Regions 2 Pre-discovered Areas 4 | . . . 4 Known Exits Taken 1 | . 1 . . Unknown Exits Taken 2 | 1 . 1 . Scrap Searched 3 | . . . 3 Spaces Dug . | . . . . Terrain Destroyed 4 | . . . 4 Melee . | . . . . Projectile . | . . . . AOE 4 | . . . 4 Terrain Rammed . | . . . . Walls Destroyed . | . . . . Machines Disabled . | . . . . Actions | -11 -10 -10 -10 --------- Run | Yrd Mat Min Sub Total 2942 | 55 323 436 2128 Wait 51 | . . 36 15 Move 2708 | 46 300 376 1986 Hop . | . . . . Pick Up 27 | 3 7 4 13 Fast Attach 12 | 5 4 1 2 Attach 6 | 1 . 1 4 Detach . | . . . . Swap 17 | . 1 4 12 Drop 15 | . . 7 8 Fire 105 | . 11 7 87 Melee . | . . . . Ram . | . . . . Kick . | . . . . Crush . | . . . . Escape Stasis . | . . . . Rewire . | . . . . Trap . | . . . . Miscellaneous 1 | . . . 1 Route ------- -11/Scrapyard -10/Materials (discovered 3 exits: [*Mat] / *Min x2) -10/Mines (discovered 3 exits: [*Mat x2] / *Sub) -10/Subcaves (discovered 3 exits: [*Mat x2] / [*Rec]) History --------- Turn | Location | Event 10 | -11/Scrapyard | Discovered new exit (range 15) 80 | -11/Scrapyard | Entered Materials 281 | -10/Materials | Identified exit to Mines 311 | -10/Materials | Build established: Mutant 336 | -10/Materials | Discovered new exit (range 16) 608 | -10/Materials | Entered Mines 761 | -10/Mines | Found a damaged Exp. Sensor Array with a note attached 765 | -10/Mines | Found Prototype Device 855 | -10/Mines | Assisted by bots powering up and referring to "LRC-V3" 994 | -10/Mines | Build established: Scavenger-Mutant 1080 | -10/Mines | Discovered new exit (range 8) 1082 | -10/Mines | Received a Rocket Launcher from a helpful Derelict 1209 | -10/Mines | Discovered new exit (range 8) 1272 | -10/Mines | Discovered new exit (range 5) 1281 | -10/Mines | Entered Subcaves 1281 | -10/Subcaves | Accompanied by 3 allies 1282 | -10/Subcaves | Approached by a straggling Scientist 1371 | -10/Subcaves | Learned Materials security intel 1666 | -10/Subcaves | Discovered new exit (range 6) 2074 | -10/Subcaves | Core integrity fell below 50% 2158 | -10/Subcaves | Discovered new exit (range 10) 2263 | -10/Subcaves | Learned location of Zion (-7) 2263 | -10/Subcaves | Met a Zionite searching for "candidates" 2317 | -10/Subcaves | Build established: Mutant 2513 | -10/Subcaves | Core integrity fell below 20% 2667 | -10/Subcaves | Discovered new exit (range 10) 2757 | -10/Subcaves | Visited 4L-MR0's lab 3440 | -10/Subcaves | Visited Clippyterm 3445 | -10/Subcaves | Learned location of Extension (-5) 3445 | -10/Subcaves | Learned location of Section 7 (-2) 3508 | -10/Subcaves | Shifting Twisted Machinery released Sub. Laser 3518 | -10/Subcaves | Shifting Twisted Machinery released Sub. Power Source 3677 | -10/Subcaves | A swath of the cavern ceiling suddenly collapsed 3865 | -10/Subcaves | A swath of the cavern ceiling suddenly collapsed 4608 | -10/Subcaves | Released subatomizers from SUBCON Basin 4782 | -10/Subcaves | Destroyed by Piercing Trap Last Messages --------------- Acquired Sub. Power Source. Connecting with SUBCON Basin Controls... Released subatomizers from SUBCON Basin. Dropped Lgt. Cannon. Connecting with UFD SUBCON Station... Acquired 34 matter. Acquired 18 matter. Acquired Mak. System Shield. Sub. Power Source shoots sparks and powers down. Triggered Shrapnel Trap. An expanding cloud of shrapnel blasts out in all directions. Battle Rifle destroyed. Triggered Piercing Trap. Spikes shoot up from the floor. Critical hit (Impale). Triggered Piercing Trap. Spikes shoot up from the floor. Critical hit (Impale). Map ----- +----------------------------------------------------+ | #??????## #?## """ ##???## ### | | #?????## ##?# #???# ##?# ### | | #?????# #?# ### # ##??# ##??# #?## | | #?????# #### ##?##### ##?## ##??# #??## | | ###???# ### #??#???## #### #?# #???# | | ##?## ####?## ## #### #?## ####??? | | ### #???# #?# #?##### #??? | | ### #??### ### ### #??? | | ##??# ""??# ### ## ## #### | | ##???? "#??# ### #?# ## # | | ### #?????? ""#??# ??# ?# | | #?### #?????? ###??##???# # # # | | #??? ##???????#?????????# ## ##### # ## | | #??? #?????????????????? #### ### # ###### | | #??# #?????????????????? #??## " &#???? | | #?? ??????????????????"""???## &!##??? | | #?? ####?????????????????#"##???## ### ="&!%#??? | | #? ##??????????????????? ??##### # * & ###??? | | #? ##?????????????????? ??# & #??# | | ## #??????????????????# ### #### | | # ##????????????????##^ ## # ## "## | | #???????????????## ?#### "# | | #???????????????# ?????# ## | | ## ##??????????????## ^ ??????# ## ## | | ##???????????????????# #####?????# " # | | ##????????????????????# @ ;;;;#?????## ## # | | #?????????????????????# ;##?????#"" ## ## | | #?????????????????????## ##????# "#### ## | | #?????????????????????## ; #????## "### "# | | #####?????????????????# ; ;; ##??#?# ## # | | ##????????????????## "#;# #????# " # | | ##??????#????????# "#### ##????#"" ## | | #???????????????# ""### #???###"" ### ## | | ##???????????????##"" ## ##?#?# ### # | | # ###?????????????????#"u ""#####* ##??# # | | # ##???#??????????????#"" ## "& & ##???# # | | ## #??????????????????#"" ####=" =] #?### # | | ## ###???????????????#?##" #?##!"&" " ### | | # #???????????????#?## ### &&*] & [ #!!= | | ### ##???????????????###" #& = = = ! "" | | #?## #?#????????????????#" ## & ! #####[ ####"" | | ### #??????????????????#"" ######&&##?#?####?## | | ## #??????????????????#" ##??# = ###?####?## " | | ## ##?????????????????#" ##?## & ######## "" | | ##????????????????## ##??# ### ## "" | | #?????????????##??# ##??# # ### " | | #????????????????## #### # #### ### | | ####????#??#???????#?## ## ## # ##??## ### | | ##????????##??????#???# # # # #???"# ##?# | | #????????????????????### = #????# ##### | +----------------------------------------------------+ Best States ------------- Heat Dissipation 25 Coolant Potential 50 Energy Generation 15 Energy Capacity 265 Matter Stores 300 Matter Capacity 300 Sight Range 16 Terrain Scan Range 14 Terrain Scan Density 10 Evasion (%) 40 Recoil Reduction 2 Item Schematics ----------------- None Robot Schematics ------------------ None Fabricated ------------ Nothing Repaired ---------- Nothing Studied --------- None Alien Tech Used ----------------- None Achievements -------------- None Challenges ------------ None Game ------ Seed DispersionFireDissipator Manual? 0 Play Time 00:26:42 Cumulative 88.9 hours Start 2025.10.22 @ 16:43:59 End 2025.10.22 @ 17:08:03 Sessions 1 Manual Loads 0 Difficulty Rogue Special Mode None Game No. 99 Rogue 99 Adventurer 0 Explorer 0 Win Type - Total 1 Types 1/0/0/0/0/0/0/0/0/0 Lore% 68 Gallery% 53 Achievement% 30 Wizard Run 0 Options --------- Layout 1 ASCII 0 Keyboard 0 Movement Mouse Keybinds 0 Fullscreen 2 Font 24/Smallcaps Map View 50x35 Zoom Use 0% Tactical HUD 0 Map Filters NONE Filters NONE Steam 1 RUN: 22941575-585b-4653-96ec-c1f587c876c5